[Event "*** Titled Tuesday Blitz"]
[Site "Chess.com"]
[Date "2020.05.12"]
[Round "2"]
[White "rynos0411"]
[Black "1stSecond"]
[Result "0-1"]
[WhiteElo "2327"]
[BlackElo "2673"]
[TimeControl "180+1"]
[EndTime "10:18:35 PDT"]
[Termination "1stSecond won by resignation"]

1. d4 {[%clk 0:03:00.8]} 1... Nf6 {[%clk 0:02:33.3]} 2. c4 {[%clk 0:02:59.1]}
2... c5 {[%clk 0:02:29.4]} 3. d5 {[%clk 0:02:57.6]} 3... b5 {[%clk 0:02:01.1]}
4. cxb5 {[%clk 0:02:52.6]} 4... a6 {[%clk 0:02:02]} 5. bxa6 {[%clk 0:02:49.5]}
5... g6 {[%clk 0:01:50.3]} 6. Nc3 {[%clk 0:02:49.3]} 6... Bg7 {[%clk 0:01:49.3]}
7. e4 {[%clk 0:02:49.3]} 7... O-O {[%clk 0:01:48.4]} 8. Nf3 {[%clk 0:02:46.4]}
8... Qa5 {[%clk 0:01:48.5]} 9. Bd3 {[%clk 0:02:43.9]} 9... Nxd5 {[%clk
0:01:38.9]} 10. exd5 {[%clk 0:02:10.3]} 10... Bxc3+ {[%clk 0:01:38.2]} 11. Bd2
{[%clk 0:01:38.6]} 11... Bxd2+ {[%clk 0:01:36.7]} 12. Qxd2 {[%clk 0:01:37.4]}
12... Qxd2+ {[%clk 0:01:37.1]} 13. Nxd2 {[%clk 0:01:35.8]} 13... Bxa6 {[%clk
0:01:38]} 14. Bxa6 {[%clk 0:01:33.9]} 14... Nxa6 {[%clk 0:01:36.7]} 15. a3
{[%clk 0:01:27.7]} 15... Nb4 {[%clk 0:01:29.2]} 16. O-O {[%clk 0:01:20.9]} 16...
Nxd5 {[%clk 0:01:29.2]} 17. Rfe1 {[%clk 0:01:16.5]} 17... Rfb8 {[%clk
0:01:24.9]} 18. b3 {[%clk 0:01:11.5]} 18... e6 {[%clk 0:01:20]} 19. a4 {[%clk
0:01:08.3]} 19... Nf4 {[%clk 0:01:03.2]} 20. g3 {[%clk 0:01:02.8]} 20... Nd3
{[%clk 0:00:57.6]} 21. Re3 {[%clk 0:00:59.8]} 21... Nb4 {[%clk 0:00:56.4]} 22.
Rc1 {[%clk 0:00:57.8]} 22... d6 {[%clk 0:00:51.7]} 23. Ne4 {[%clk 0:00:57.7]}
23... Ra6 {[%clk 0:00:49.5]} 24. Rd1 {[%clk 0:00:56.2]} 24... Nd5 {[%clk
0:00:48.6]} 25. Red3 {[%clk 0:00:52.4]} 25... Rb4 {[%clk 0:00:46.8]} 26. Nd2
{[%clk 0:00:43]} 26... Rd4 {[%clk 0:00:38.3]} 27. Rxd4 {[%clk 0:00:20.3]} 27...
cxd4 {[%clk 0:00:39.2]} 28. Nc4 {[%clk 0:00:19.5]} 28... Nc3 {[%clk 0:00:38.9]}
29. Rd2 {[%clk 0:00:17.5]} 29... d5 {[%clk 0:00:35.7]} 30. Ne5 {[%clk
0:00:15.6]} 30... f6 {[%clk 0:00:35.9]} 31. Nd7 {[%clk 0:00:15.5]} 31... e5
{[%clk 0:00:35.2]} 32. f4 {[%clk 0:00:12.9]} 32... e4 {[%clk 0:00:28.4]} 33. Kf1
{[%clk 0:00:12.2]} 33... d3 {[%clk 0:00:27.2]} 34. Nc5 {[%clk 0:00:02.5]} 34...
Rc6 {[%clk 0:00:25.1]} 35. b4 {[%clk 0:00:02.2]} 35... f5 {[%clk 0:00:22.3]} 36.
a5 {[%clk 0:00:02.3]} 36... Kf7 {[%clk 0:00:16.9]} 37. a6 {[%clk 0:00:02.4]}
37... Rc7 {[%clk 0:00:15.1]} 38. Rb2 {[%clk 0:00:02]} 38... Nb5 {[%clk
0:00:14.9]} 39. Ra2 {[%clk 0:00:01.1]} 39... d4 {[%clk 0:00:14]} 40. Ke1 {[%clk
0:00:01.6]} 40... Ke7 {[%clk 0:00:13.9]} 41. Kd2 {[%clk 0:00:01.9]} 41... Kd6
{[%clk 0:00:13.5]} 42. Ra5 {[%clk 0:00:02.2]} 42... Kc6 {[%clk 0:00:13.9]} 43.
a7 {[%clk 0:00:01.9]} 43... Rxa7 {[%clk 0:00:13.4]} 44. Nb3 {[%clk 0:00:02.4]}
44... Rxa5 {[%clk 0:00:12.2]} 45. Nxa5+ {[%clk 0:00:03.3]} 45... Kd5 {[%clk
0:00:12.3]} 46. Nc4 {[%clk 0:00:04.2]} 0-1

[Event "*** Titled Tuesday Blitz"]
[Site "Chess.com"]
[Date "2020.05.12"]
[Round "2"]
[White "Hasangatin_Ramil"]
[Black "Jumbo"]
[Result "1-0"]
[WhiteElo "2561"]
[BlackElo "2834"]
[TimeControl "180+1"]
[EndTime "10:18:38 PDT"]
[Termination "Hasangatin_Ramil won on time"]

1. e4 {[%clk 0:03:00.9]} 1... e5 {[%clk 0:02:56.3]} 2. Nf3 {[%clk 0:02:58]} 2...
Nc6 {[%clk 0:02:56.2]} 3. Bb5 {[%clk 0:02:57.3]} 3... a6 {[%clk 0:02:55.2]} 4.
Ba4 {[%clk 0:02:56.5]} 4... d6 {[%clk 0:02:55.3]} 5. Bxc6+ {[%clk 0:02:52]} 5...
bxc6 {[%clk 0:02:55]} 6. d4 {[%clk 0:02:52.9]} 6... exd4 {[%clk 0:02:48.6]} 7.
Qxd4 {[%clk 0:02:51.8]} 7... c5 {[%clk 0:02:44.9]} 8. Qd3 {[%clk 0:02:47.3]}
8... Be7 {[%clk 0:02:32.7]} 9. Nc3 {[%clk 0:02:44.8]} 9... Nf6 {[%clk
0:02:31.2]} 10. e5 {[%clk 0:02:41]} 10... dxe5 {[%clk 0:02:19]} 11. Qxd8+ {[%clk
0:02:36.9]} 11... Bxd8 {[%clk 0:02:19.9]} 12. Nxe5 {[%clk 0:02:33.1]} 12... Be7
{[%clk 0:02:19.9]} 13. Be3 {[%clk 0:02:21.6]} 13... Be6 {[%clk 0:01:56.3]} 14.
Nd3 {[%clk 0:02:12.2]} 14... Nd7 {[%clk 0:01:17.8]} 15. O-O-O {[%clk 0:02:03.7]}
15... O-O-O {[%clk 0:01:14.2]} 16. Na4 {[%clk 0:01:43.6]} 16... Bxa2 {[%clk
0:01:06]} 17. Naxc5 {[%clk 0:01:31.1]} 17... Nxc5 {[%clk 0:00:59.5]} 18. Bxc5
{[%clk 0:01:19.1]} 18... Bxc5 {[%clk 0:00:41.8]} 19. Nxc5 {[%clk 0:01:20]} 19...
Bd5 {[%clk 0:00:38.2]} 20. f3 {[%clk 0:01:08.1]} 20... a5 {[%clk 0:00:38.3]} 21.
Rd4 {[%clk 0:01:04.9]} 21... Bc6 {[%clk 0:00:38.5]} 22. Rxd8+ {[%clk 0:01:03.1]}
22... Rxd8 {[%clk 0:00:39.4]} 23. Rd1 {[%clk 0:01:01.9]} 23... Re8 {[%clk
0:00:39]} 24. Kd2 {[%clk 0:01:02.1]} 24... Re5 {[%clk 0:00:39.1]} 25. Nd3 {[%clk
0:01:01]} 25... Rg5 {[%clk 0:00:36]} 26. Nf4 {[%clk 0:00:52.6]} 26... a4 {[%clk
0:00:35.6]} 27. Re1 {[%clk 0:00:50.7]} 27... Kd7 {[%clk 0:00:33.6]} 28. h4
{[%clk 0:00:50]} 28... Rb5 {[%clk 0:00:22.7]} 29. Nd3 {[%clk 0:00:50.2]} 29...
f6 {[%clk 0:00:21.2]} 30. Ke3 {[%clk 0:00:41.7]} 30... Rh5 {[%clk 0:00:20.7]}
31. g3 {[%clk 0:00:40.2]} 31... Rf5 {[%clk 0:00:10.5]} 32. f4 {[%clk 0:00:39.6]}
32... Rb5 {[%clk 0:00:09.8]} 33. Rd1 {[%clk 0:00:38.4]} 33... Kc8 {[%clk
0:00:09.6]} 34. Ra1 {[%clk 0:00:37.8]} 34... Rb6 {[%clk 0:00:08.8]} 35. Ra3
{[%clk 0:00:36.1]} 35... Be8 {[%clk 0:00:07.7]} 36. Kd2 {[%clk 0:00:30.9]} 36...
Rd6 {[%clk 0:00:07.3]} 37. Ke3 {[%clk 0:00:30.6]} 37... Re6+ {[%clk 0:00:07.4]}
38. Kd2 {[%clk 0:00:30.5]} 38... Bb5 {[%clk 0:00:06.8]} 39. Rc3 {[%clk
0:00:28.3]} 39... Rd6 {[%clk 0:00:06.2]} 40. Rc5 {[%clk 0:00:27.3]} 40... c6
{[%clk 0:00:05.8]} 41. c4 {[%clk 0:00:25.5]} 41... Ba6 {[%clk 0:00:04.9]} 42.
Kc3 {[%clk 0:00:25.7]} 42... Kc7 {[%clk 0:00:05.2]} 43. Ra5 {[%clk 0:00:22]}
43... Bc8 {[%clk 0:00:01.4]} 44. Ra7+ {[%clk 0:00:18.3]} 1-0

[Event "*** Titled Tuesday Blitz"]
[Site "Chess.com"]
[Date "2020.05.12"]
[Round "2"]
[White "Camels1981"]
[Black "Zq1"]
[Result "1-0"]
[WhiteElo "2309"]
[BlackElo "2544"]
[TimeControl "180+1"]
[EndTime "10:18:38 PDT"]
[Termination "Camels1981 won by resignation"]

1. e4 {[%clk 0:03:00.9]} 1... c5 {[%clk 0:02:59]} 2. Nf3 {[%clk 0:02:58.5]} 2...
d6 {[%clk 0:02:58.9]} 3. d4 {[%clk 0:02:57.7]} 3... cxd4 {[%clk 0:02:59]} 4.
Nxd4 {[%clk 0:02:58.6]} 4... Nf6 {[%clk 0:02:59.1]} 5. Nc3 {[%clk 0:02:59]} 5...
Nc6 {[%clk 0:02:59.3]} 6. Bc4 {[%clk 0:02:59.5]} 6... Bd7 {[%clk 0:02:58.3]} 7.
Bb3 {[%clk 0:02:58.9]} 7... g6 {[%clk 0:02:56.6]} 8. Bg5 {[%clk 0:02:57.4]} 8...
Bg7 {[%clk 0:02:52.3]} 9. O-O {[%clk 0:02:57.7]} 9... O-O {[%clk 0:02:43.7]} 10.
Nf3 {[%clk 0:02:03.8]} 10... Rc8 {[%clk 0:02:40.2]} 11. Qd2 {[%clk 0:01:58.3]}
11... Bg4 {[%clk 0:02:38]} 12. Ne1 {[%clk 0:01:47]} 12... Na5 {[%clk 0:02:30.9]}
13. f3 {[%clk 0:01:46.5]} 13... Be6 {[%clk 0:02:22.3]} 14. Nd3 {[%clk
0:01:45.5]} 14... Nc4 {[%clk 0:02:18.8]} 15. Bxc4 {[%clk 0:01:40]} 15... Bxc4
{[%clk 0:02:18.3]} 16. Rfd1 {[%clk 0:01:39]} 16... b5 {[%clk 0:02:12.5]} 17. Kh1
{[%clk 0:01:24.4]} 17... a5 {[%clk 0:02:01.2]} 18. a3 {[%clk 0:01:23.3]} 18...
Qb6 {[%clk 0:01:54]} 19. Ne2 {[%clk 0:01:21.4]} 19... Rfd8 {[%clk 0:01:47.5]}
20. b3 {[%clk 0:01:07.7]} 20... Be6 {[%clk 0:01:37.7]} 21. Be3 {[%clk
0:01:02.3]} 21... Qc7 {[%clk 0:01:34.2]} 22. Rac1 {[%clk 0:01:02.6]} 22... Nd7
{[%clk 0:01:24.9]} 23. Nef4 {[%clk 0:01:00.7]} 23... Bb2 {[%clk 0:01:16.7]} 24.
Rb1 {[%clk 0:00:58.4]} 24... Bxa3 {[%clk 0:01:15.8]} 25. Nxe6 {[%clk 0:00:58.6]}
25... fxe6 {[%clk 0:01:15.3]} 26. Bg5 {[%clk 0:00:52]} 26... Re8 {[%clk
0:01:12.1]} 27. Nf4 {[%clk 0:00:47.8]} 27... Bb4 {[%clk 0:01:03]} 28. Qf2 {[%clk
0:00:46.8]} 28... Qxc2 {[%clk 0:00:55.3]} 29. Qh4 {[%clk 0:00:45.8]} 29... Ne5
{[%clk 0:00:40.1]} 30. Nxe6 {[%clk 0:00:43.7]} 30... Nd3 {[%clk 0:00:37.8]} 31.
Be3 {[%clk 0:00:31.8]} 31... Bc3 {[%clk 0:00:21.1]} 32. Ng5 {[%clk 0:00:26.6]}
32... h5 {[%clk 0:00:19.1]} 33. Ne6 {[%clk 0:00:22.6]} 33... Qe2 {[%clk
0:00:15.3]} 34. Qg5 {[%clk 0:00:19.8]} 34... Kf7 {[%clk 0:00:14.1]} 35. Nf4
{[%clk 0:00:12.5]} 35... Rg8 {[%clk 0:00:12.4]} 36. Nxe2 {[%clk 0:00:11.6]}
36... Bf6 {[%clk 0:00:10.7]} 37. Qg3 {[%clk 0:00:10.8]} 37... h4 {[%clk
0:00:10.1]} 38. Qh3 {[%clk 0:00:09.5]} 38... g5 {[%clk 0:00:09.7]} 39. Rxd3
{[%clk 0:00:08]} 39... g4 {[%clk 0:00:08.9]} 40. fxg4 {[%clk 0:00:08.2]} 40...
b4 {[%clk 0:00:08.9]} 41. Rf1 {[%clk 0:00:07.9]} 41... Kg7 {[%clk 0:00:08.1]}
42. g5 {[%clk 0:00:08.1]} 42... Be5 {[%clk 0:00:08.1]} 43. Qg4 {[%clk
0:00:07.3]} 43... Rgf8 {[%clk 0:00:07.8]} 44. Rxf8 {[%clk 0:00:06.5]} 44... Rxf8
{[%clk 0:00:07.1]} 45. Rd1 {[%clk 0:00:06.3]} 1-0

[Event "*** Titled Tuesday Blitz"]
[Site "Chess.com"]
[Date "2020.05.12"]
[Round "2"]
[White "FeketeBarika"]
[Black "CyberneticLion"]
[Result "1-0"]
[WhiteElo "2307"]
[BlackElo "2538"]
[TimeControl "180+1"]
[EndTime "10:18:38 PDT"]
[Termination "FeketeBarika won by resignation"]

1. Nf3 {[%clk 0:02:46.1]} 1... d5 {[%clk 0:02:58.8]} 2. g3 {[%clk 0:02:46.6]}
2... Nf6 {[%clk 0:02:58.4]} 3. Bg2 {[%clk 0:02:47.5]} 3... Nbd7 {[%clk
0:02:58.9]} 4. c4 {[%clk 0:02:48]} 4... c6 {[%clk 0:02:58.4]} 5. O-O {[%clk
0:02:48.2]} 5... e5 {[%clk 0:02:58.5]} 6. d3 {[%clk 0:02:48]} 6... Be7 {[%clk
0:02:56.8]} 7. Nc3 {[%clk 0:02:48.4]} 7... O-O {[%clk 0:02:56.5]} 8. Bg5 {[%clk
0:02:47.6]} 8... d4 {[%clk 0:02:52.8]} 9. Nb1 {[%clk 0:02:45.4]} 9... Rb8 {[%clk
0:02:38.6]} 10. Nbd2 {[%clk 0:02:44.5]} 10... Qc7 {[%clk 0:02:34.8]} 11. Rc1
{[%clk 0:02:43]} 11... c5 {[%clk 0:02:34.2]} 12. a3 {[%clk 0:02:42.3]} 12... b6
{[%clk 0:02:29.4]} 13. e3 {[%clk 0:02:34.7]} 13... Re8 {[%clk 0:02:28.3]} 14.
exd4 {[%clk 0:02:34.2]} 14... exd4 {[%clk 0:02:28.3]} 15. Bf4 {[%clk 0:02:33.7]}
15... Bd6 {[%clk 0:02:27.8]} 16. Bxd6 {[%clk 0:02:32.9]} 16... Qxd6 {[%clk
0:02:28.7]} 17. Re1 {[%clk 0:02:32.2]} 17... Bb7 {[%clk 0:02:28.9]} 18. Ng5
{[%clk 0:02:30.2]} 18... Bxg2 {[%clk 0:02:25.9]} 19. Kxg2 {[%clk 0:02:31.1]}
19... Qc6+ {[%clk 0:02:24.1]} 20. Qf3 {[%clk 0:02:30.4]} 20... Qxf3+ {[%clk
0:02:12.9]} 21. Ngxf3 {[%clk 0:02:25.4]} 21... Ng4 {[%clk 0:02:10]} 22. Ne4
{[%clk 0:02:12.7]} 22... Nge5 {[%clk 0:02:05.2]} 23. Nxe5 {[%clk 0:01:58.6]}
23... Nxe5 {[%clk 0:02:04.9]} 24. Rcd1 {[%clk 0:01:59]} 24... Kf8 {[%clk
0:02:03.9]} 25. b4 {[%clk 0:01:57.3]} 25... Nd7 {[%clk 0:01:57.5]} 26. Nd6
{[%clk 0:01:53.7]} 26... Re6 {[%clk 0:01:53.3]} 27. Nb5 {[%clk 0:01:31.8]} 27...
a5 {[%clk 0:01:46.8]} 28. bxa5 {[%clk 0:01:24.9]} 28... bxa5 {[%clk 0:01:47.7]}
29. Nc7 {[%clk 0:00:29.7]} 29... Rc6 {[%clk 0:01:42.3]} 30. Nb5 {[%clk
0:00:29.1]} 30... f6 {[%clk 0:01:40.6]} 31. Rb1 {[%clk 0:00:25.6]} 31... Ne5
{[%clk 0:01:38.1]} 32. Red1 {[%clk 0:00:24.4]} 32... Rcb6 {[%clk 0:01:37.2]} 33.
h3 {[%clk 0:00:24.7]} 33... Nc6 {[%clk 0:01:37.1]} 34. Rbc1 {[%clk 0:00:23.5]}
34... R6b7 {[%clk 0:01:31.7]} 35. f4 {[%clk 0:00:22.6]} 35... Na7 {[%clk
0:01:31.2]} 36. Nd6 {[%clk 0:00:20.5]} 36... Rb2+ {[%clk 0:01:23.7]} 37. Kf3
{[%clk 0:00:20.9]} 37... R8b6 {[%clk 0:01:17.3]} 38. Ne4 {[%clk 0:00:19]} 38...
Re6 {[%clk 0:01:09]} 39. Rb1 {[%clk 0:00:16.7]} 39... Reb6 {[%clk 0:00:57.7]}
40. Rxb2 {[%clk 0:00:16.1]} 40... Rxb2 {[%clk 0:00:58.6]} 41. Nxc5 {[%clk
0:00:16.6]} 41... Ra2 {[%clk 0:00:58.6]} 42. Ne6+ {[%clk 0:00:16.3]} 42... Kf7
{[%clk 0:00:58]} 43. Nxd4 {[%clk 0:00:17.2]} 43... Rxa3 {[%clk 0:00:58.3]} 44.
Ke3 {[%clk 0:00:16.8]} 44... Ra2 {[%clk 0:00:55.4]} 45. Rb1 {[%clk 0:00:16.4]}
45... Nc8 {[%clk 0:00:54.3]} 46. Rb7+ {[%clk 0:00:15.4]} 46... Kg6 {[%clk
0:00:53.2]} 47. f5+ {[%clk 0:00:13.7]} 47... Kh6 {[%clk 0:00:52.6]} 48. c5
{[%clk 0:00:12.9]} 48... Ra1 {[%clk 0:00:47.1]} 49. Rc7 {[%clk 0:00:11.4]} 49...
Re1+ {[%clk 0:00:47.4]} 50. Ne2 {[%clk 0:00:11.4]} 50... a4 {[%clk 0:00:40.8]}
51. Rxc8 {[%clk 0:00:11.3]} 51... a3 {[%clk 0:00:41]} 52. Ra8 {[%clk 0:00:11.1]}
1-0

[Event "*** Titled Tuesday Blitz"]
[Site "Chess.com"]
[Date "2020.05.12"]
[Round "2"]
[White "Keks2017"]
[Black "PavlovDanila"]
[Result "0-1"]
[WhiteElo "2471"]
[BlackElo "2702"]
[TimeControl "180+1"]
[EndTime "10:18:40 PDT"]
[Termination "PavlovDanila won by resignation"]

1. g3 {[%clk 0:03:00]} 1... Nf6 {[%clk 0:02:58.4]} 2. Bg2 {[%clk 0:03:00]} 2...
g6 {[%clk 0:02:59.3]} 3. Nf3 {[%clk 0:02:58.1]} 3... Bg7 {[%clk 0:03:00.2]} 4.
O-O {[%clk 0:02:58.3]} 4... d6 {[%clk 0:03:01]} 5. d3 {[%clk 0:02:58.5]} 5...
O-O {[%clk 0:03:01.9]} 6. c4 {[%clk 0:02:58.1]} 6... Nc6 {[%clk 0:03:01.8]} 7.
Nc3 {[%clk 0:02:57.9]} 7... e5 {[%clk 0:03:02.1]} 8. Rb1 {[%clk 0:02:57.9]} 8...
Ne8 {[%clk 0:03:01.2]} 9. Bd2 {[%clk 0:02:56.5]} 9... f5 {[%clk 0:03:01.2]} 10.
b4 {[%clk 0:02:56.4]} 10... f4 {[%clk 0:03:00.7]} 11. b5 {[%clk 0:02:56.5]}
11... Nd4 {[%clk 0:02:59.5]} 12. Nxd4 {[%clk 0:02:52.5]} 12... exd4 {[%clk
0:03:00.4]} 13. Nd5 {[%clk 0:02:51.9]} 13... fxg3 {[%clk 0:02:47.2]} 14. hxg3
{[%clk 0:02:51.7]} 14... Nf6 {[%clk 0:02:42.2]} 15. Qb3 {[%clk 0:02:43.7]} 15...
Kh8 {[%clk 0:02:35.9]} 16. Rbc1 {[%clk 0:02:37.7]} 16... Re8 {[%clk 0:02:32.6]}
17. Rfe1 {[%clk 0:02:36.1]} 17... Bg4 {[%clk 0:02:31.9]} 18. Nxf6 {[%clk
0:02:34.9]} 18... Qxf6 {[%clk 0:02:31.2]} 19. Bxb7 {[%clk 0:02:33.1]} 19... Rab8
{[%clk 0:02:31]} 20. Be4 {[%clk 0:02:32.7]} 20... Rf8 {[%clk 0:02:08.1]} 21. f3
{[%clk 0:02:26.8]} 21... Bf5 {[%clk 0:02:07.7]} 22. Rf1 {[%clk 0:02:25.8]} 22...
g5 {[%clk 0:02:01.9]} 23. a4 {[%clk 0:02:08.8]} 23... Be6 {[%clk 0:01:57.5]} 24.
Qc2 {[%clk 0:02:03.2]} 24... Qh6 {[%clk 0:01:55]} 25. Qd1 {[%clk 0:01:59.9]}
25... Qh3 {[%clk 0:01:49.4]} 26. Qe1 {[%clk 0:01:59.8]} 26... Be5 {[%clk
0:01:48.3]} 27. Qf2 {[%clk 0:01:55.9]} 27... Bxg3 {[%clk 0:01:47.1]} 28. Qg2
{[%clk 0:01:55.9]} 28... Qh4 {[%clk 0:01:47]} 29. Be1 {[%clk 0:01:55.3]} 29...
Bxe1 {[%clk 0:01:46.7]} 30. Rfxe1 {[%clk 0:01:55.3]} 30... g4 {[%clk 0:01:44.7]}
31. Qh2 {[%clk 0:01:54.3]} 31... Qe7 {[%clk 0:01:29.8]} 32. f4 {[%clk
0:01:50.1]} 32... g3 {[%clk 0:01:24]} 33. Qh5 {[%clk 0:01:45.1]} 33... Rxf4
{[%clk 0:01:20.8]} 34. Rf1 {[%clk 0:01:42.6]} 34... Rh4 {[%clk 0:01:15.8]} 35.
Qf3 {[%clk 0:01:42.5]} 35... g2 {[%clk 0:01:01.3]} 36. Kxg2 {[%clk 0:01:40.7]}
36... Rg8+ {[%clk 0:00:58.1]} 37. Kf2 {[%clk 0:01:40.5]} 37... Rf8 {[%clk
0:00:58.2]} 38. Ke1 {[%clk 0:01:40.2]} 38... Rxf3 {[%clk 0:00:57.8]} 39. Bxf3
{[%clk 0:01:40.2]} 39... Qg5 {[%clk 0:00:56.1]} 40. Kd1 {[%clk 0:01:39.9]} 40...
Bg4 {[%clk 0:00:51.4]} 41. Kc2 {[%clk 0:01:37.3]} 41... Bxf3 {[%clk 0:00:50.7]}
42. Rxf3 {[%clk 0:01:37.2]} 42... Rh2 {[%clk 0:00:50.6]} 43. Re1 {[%clk
0:01:36.5]} 43... Qg4 {[%clk 0:00:47.6]} 44. Kd1 {[%clk 0:01:36.3]} 44... Rg2
{[%clk 0:00:45.8]} 45. Rf8+ {[%clk 0:01:27.5]} 45... Kg7 {[%clk 0:00:45]} 46.
Ra8 {[%clk 0:01:27.4]} 46... Rg1 {[%clk 0:00:37.3]} 47. Rxa7 {[%clk 0:01:27.1]}
47... Rxe1+ {[%clk 0:00:37.1]} 48. Kxe1 {[%clk 0:01:25.8]} 48... Qg1+ {[%clk
0:00:26.9]} 49. Kd2 {[%clk 0:01:25.2]} 49... Qa1 {[%clk 0:00:27.3]} 50. Rxc7+
{[%clk 0:01:21.3]} 50... Kg6 {[%clk 0:00:27.4]} 51. Rc6 {[%clk 0:01:20.8]} 51...
h5 {[%clk 0:00:25.8]} 52. Rxd6+ {[%clk 0:01:19.5]} 52... Kg5 {[%clk 0:00:24.8]}
53. Rd8 {[%clk 0:01:19.2]} 53... Qxa4 {[%clk 0:00:21.1]} 54. Ke1 {[%clk
0:01:17.1]} 54... Qa7 {[%clk 0:00:17.7]} 55. Rg8+ {[%clk 0:01:15.4]} 55... Kf4
{[%clk 0:00:15.9]} 56. Kf2 {[%clk 0:01:15.2]} 56... Qf7 {[%clk 0:00:14.1]} 57.
Rg1 {[%clk 0:01:13.1]} 57... h4 {[%clk 0:00:13.1]} 58. c5 {[%clk 0:01:11]} 58...
h3 {[%clk 0:00:10.8]} 59. c6 {[%clk 0:01:10.3]} 59... h2 {[%clk 0:00:08]} 60.
Rh1 {[%clk 0:01:10.3]} 60... Qh7 {[%clk 0:00:07.6]} 61. b6 {[%clk 0:01:07.8]}
61... Qh4+ {[%clk 0:00:07.1]} 62. Kg2 {[%clk 0:01:03.7]} 62... Qg3+ {[%clk
0:00:07.3]} 63. Kf1 {[%clk 0:01:03.8]} 63... Ke3 {[%clk 0:00:07.7]} 0-1

[Event "*** Titled Tuesday Blitz"]
[Site "Chess.com"]
[Date "2020.05.12"]
[Round "2"]
[White "mjray79"]
[Black "spidernv"]
[Result "1-0"]
[WhiteElo "2242"]
[BlackElo "2440"]
[TimeControl "180+1"]
[EndTime "10:18:40 PDT"]
[Termination "mjray79 won by checkmate"]

1. d4 {[%clk 0:03:00.9]} 1... d5 {[%clk 0:02:59.4]} 2. c4 {[%clk 0:03:00.2]}
2... c6 {[%clk 0:02:59.6]} 3. Nf3 {[%clk 0:02:59.6]} 3... Nf6 {[%clk 0:02:59.8]}
4. Nc3 {[%clk 0:03:00.1]} 4... e6 {[%clk 0:03:00.3]} 5. e3 {[%clk 0:02:57.7]}
5... Be7 {[%clk 0:02:59.9]} 6. Be2 {[%clk 0:02:57.6]} 6... O-O {[%clk
0:02:59.9]} 7. O-O {[%clk 0:02:58.1]} 7... Nbd7 {[%clk 0:03:00.4]} 8. b3 {[%clk
0:02:57.4]} 8... b6 {[%clk 0:03:00.7]} 9. Bb2 {[%clk 0:02:57.9]} 9... Bb7 {[%clk
0:03:00.9]} 10. Qc2 {[%clk 0:02:58.2]} 10... Rc8 {[%clk 0:03:01.2]} 11. e4
{[%clk 0:02:58.1]} 11... dxe4 {[%clk 0:03:01.2]} 12. Nxe4 {[%clk 0:02:59]} 12...
c5 {[%clk 0:03:01.7]} 13. Nxf6+ {[%clk 0:02:57.1]} 13... Bxf6 {[%clk 0:03:02.4]}
14. dxc5 {[%clk 0:02:56.9]} 14... Nxc5 {[%clk 0:03:02.3]} 15. Rad1 {[%clk
0:02:55.2]} 15... Qe7 {[%clk 0:03:02.4]} 16. Nd4 {[%clk 0:02:49.5]} 16... Rfd8
{[%clk 0:03:01.3]} 17. Nb5 {[%clk 0:02:46.1]} 17... Be4 {[%clk 0:02:56.9]} 18.
Qc1 {[%clk 0:02:44]} 18... Nd3 {[%clk 0:02:56.3]} 19. Bxd3 {[%clk 0:02:41.9]}
19... Bxd3 {[%clk 0:02:57.2]} 20. Rfe1 {[%clk 0:02:39.1]} 20... Bg5 {[%clk
0:02:55.6]} 21. Qa1 {[%clk 0:02:29.3]} 21... Bh6 {[%clk 0:02:53.2]} 22. Ba3
{[%clk 0:02:24.3]} 22... Qg5 {[%clk 0:02:48.6]} 23. Nd6 {[%clk 0:02:13]} 23...
Bc2 {[%clk 0:02:35.1]} 24. Nxc8 {[%clk 0:02:04.7]} 24... Bxd1 {[%clk 0:02:32.3]}
25. Be7 {[%clk 0:02:00.6]} 25... Qd2 {[%clk 0:02:26.7]} 26. Kf1 {[%clk
0:01:52.2]} 26... Qd3+ {[%clk 0:01:31.8]} 27. Kg1 {[%clk 0:01:51.4]} 27... Qd2
{[%clk 0:01:28.6]} 28. Kf1 {[%clk 0:01:50.8]} 28... Rd7 {[%clk 0:01:21.7]} 29.
Nxa7 {[%clk 0:01:03.2]} 29... Bf4 {[%clk 0:01:19.3]} 30. g3 {[%clk 0:00:52.4]}
30... Qd3+ {[%clk 0:00:48.8]} 31. Kg1 {[%clk 0:00:50.3]} 31... Qf3 {[%clk
0:00:40.6]} 32. Nc6 {[%clk 0:00:20.3]} 32... Bxg3 {[%clk 0:00:26]} 33. hxg3
{[%clk 0:00:19]} 33... Qxc6 {[%clk 0:00:25.8]} 34. Rxd1 {[%clk 0:00:17.8]} 34...
Rxe7 {[%clk 0:00:26]} 35. Qe5 {[%clk 0:00:18]} 35... f6 {[%clk 0:00:22.8]} 36.
Qd6 {[%clk 0:00:18]} 36... Qb7 {[%clk 0:00:21.7]} 37. Qd8+ {[%clk 0:00:17.4]}
37... Kf7 {[%clk 0:00:21.9]} 38. Qh8 {[%clk 0:00:16.5]} 38... Kg6 {[%clk
0:00:20.5]} 39. Qd8 {[%clk 0:00:15.4]} 39... h5 {[%clk 0:00:20.2]} 40. Qd3+
{[%clk 0:00:14.3]} 40... f5 {[%clk 0:00:20.4]} 41. Qe2 {[%clk 0:00:14.3]} 41...
e5 {[%clk 0:00:20.3]} 42. Rd6+ {[%clk 0:00:13.8]} 42... Kg5 {[%clk 0:00:19.5]}
43. Qe3+ {[%clk 0:00:12.4]} 43... f4 {[%clk 0:00:19.6]} 44. gxf4+ {[%clk
0:00:11]} 44... exf4 {[%clk 0:00:20.5]} 45. Rd5+ {[%clk 0:00:10.7]} 45... Kg4
{[%clk 0:00:17.8]} 46. f3+ {[%clk 0:00:08.9]} 46... Kh3 {[%clk 0:00:14.1]} 47.
Rxh5+ {[%clk 0:00:05.7]} 47... Kg3 {[%clk 0:00:12.4]} 48. Qf2# {[%clk
0:00:06.2]} 1-0